Cogmind - Beta 17.1 @@@ ROGUE MODE // 2026.08.31 @ 19:21:46 Player: Tuuli Result: Destroyed by D-53 Grenadier with Mini Grenade Launcher Performance ------------- Evolutions (0) 0 Regions Visited (4) 800 Robots Destroyed (17) 85 Value Destroyed (157) 157 Prototype IDs (0) 0 Alien Tech Used (0) 0 Bonus (21) 21 TOTAL SCORE: 1063 Bonus ------- Follower Combat Kills 21 Cogmind --------- Core Integrity 0/250 Matter 280/300 Energy 80/125 System Corruption 0% Temperature Cool (0) Movement Treading (160) Location -9/Mines Parts ------- > --- POWER (1) -------- Light Ion Engine > --- PROPULSION (2) --- Light Treads Light Treads > --- UTILITY (2) ------ Large Storage Unit Microactuators > --- WEAPON (2) ------- Makeshift Axe Makeshift Spear > --- INVENTORY (15) --- Improved Deuterium Engine Light Treads Flying Fortress v7 Small Storage Unit Experimental Sensor Array Microactuators Core Shielding Weapon Shielding Grenade Launcher Peak State ------------ > --- POWER ------------ Light Ion Engine > --- PROPULSION ------- Light Treads Light Treads > --- UTILITY ---------- Large Storage Unit Microactuators > --- WEAPON ----------- Makeshift Axe Makeshift Spear > --- INVENTORY -------- Improved Deuterium Engine Light Treads Light Treads Light Treads Light Treads Flying Fortress v7 Small Storage Unit Experimental Sensor Array Microactuators Core Shielding Grenade Launcher Grenade Launcher [Rating: 21] Favorites ----------- Power Ion Engine Engine Ion Engine Propulsion Light Treads Treads Light Treads Leg Aluminum Leg Utility Improved Targeting Computer Device Microactuators Storage Large Storage Unit Processor Improved Targeting Computer Weapon Grenade Launcher Ballistic Gun Light Assault Rifle Ballistic Cannon Improved Light Cannon Launcher Grenade Launcher Slashing Weapon Makeshift Axe Piercing Weapon Makeshift Spear Build | -11 -10 -10 -10 -9 ------- Run | Yrd Mat Min Exi Min Slots Evolved . | . . . . . Power . | . . . . . Propulsion . | . . . . . Utility . | . . . . . Weapon . | . . . . . Parts Attached 25 | 8 5 . 3 9 Power 4 | 1 . . . 3 Engine 4 | 1 . . . 3 Core . | . . . . . Reactor . | . . . . . Propulsion 7 | 2 . . 2 3 Treads 5 | . . . 2 3 Leg 2 | 2 . . . . Wheel . | . . . . . Hover . | . . . . . Flight . | . . . . . Utility 6 | 3 1 . 1 1 Device 2 | 1 . . . 1 Storage 3 | 2 . . 1 . Processor 1 | . 1 . . . Hackware . | . . . . . Protection . | . . . . . Artifact . | . . . . . Weapon 8 | 2 4 . . 2 Energy Gun . | . . . . . Energy Cannon . | . . . . . Ballistic Gun 2 | 2 . . . . Ballistic Cannon 2 | . 2 . . . Launcher 2 | . 2 . . . Special Weapon . | . . . . . Impact Weapon . | . . . . . Slashing Weapon 1 | . . . . 1 Piercing Weapon 1 | . . . . 1 Special Melee Weapon . | . . . . . Unidentified Prototypes . | . . . . . Parts Lost 5 | . . . . 5 Power 2 | . . . . 2 Propulsion 3 | . . . . 3 Utility . | . . . . . Weapon . | . . . . . Highest Loss Streak 3 | . . . . 3 To Critical Strikes 1 | . . . . 1 Average Backups 9 | 3 5 7 10 11 Power 1 | . 1 1 1 1 Propulsion 3 | 1 2 2 3 4 Utility 2 | . . 2 3 4 Weapon 2 | . 1 2 3 1 Tool/Special . | . . . . . Unused Backups 10 | . 1 . 2 7 Power 1 | . . . . 1 Propulsion 2 | . . . . 2 Utility 4 | . . . . 4 Weapon 3 | . 1 . 2 . Tool/Special . | . . . . . Average Slot Usage (%) 99 | . 99 100 100 98 Engine 13 | . 14 14 14 13 Treads 15 | . . . 22 26 Leg 11 | . 28 28 5 . Device 2 | . 6 . . 9 Storage 14 | . 14 14 14 14 Processor 11 | . 7 14 14 4 Ballistic Gun 2 | . 14 . . . Ballistic Cannon 1 | . 9 . . . Launcher 20 | . 4 28 28 9 Slashing Weapon 2 | . . . . 10 Piercing Weapon 1 | . . . . 8 Peak Build Rating 21 | 7 11 9 13 21 Average Rating 11 | 4 8 8 10 18 On Entrance 7 | . 7 8 9 13 Avg Prop Armor Cover (%) . | . . . . . Naked Turns . | . . . . . Heaviest Build 31 | 14 18 16 31 31 Greatest Support 40 | 20 20 20 40 40 Greatest Overweight (x) 1 | . . . . 1 Average Overweight (x) . | . . . . . Largest Inventory Capacity 15 | 8 8 8 15 15 Average Capacity 11 | 7 8 8 13 15 Most Carried 15 | 5 8 8 14 15 Average Carried 10 | 3 5 7 11 14 Final Capacity 15 | 8 8 8 15 15 Final Carried 14 | 4 7 8 14 12 Class Distribution -------------------- 87% | Mutant 12% | Gladiator Dominant Class ---------------- Mutant | -10/Materials Mutant | -10/Mines Mutant | -10/Exiles Gladiator | -9/Mines Resources | -11 -10 -10 -10 -9 ----------- Run | Yrd Mat Min Exi Min Matter Collected 720 | 288 28 48 . 356 Remotely . | . . . . . Salvage Created 376 | 113 44 20 19 180 Parts 36 | 6 4 9 . 17 Haulers Intercepted . | . . . . . Recyclers Shooed . | . . . . . Parts Field Recycled . | . . . . . Retrieved Matter . | . . . . . Parts Self-Destructed . | . . . . . Prevented . | . . . . . Parts Restored . | . . . . . Kills | -11 -10 -10 -10 -9 ------- Run | Yrd Mat Min Exi Min Combat Hostiles Destroyed 24 | . 3 3 . 18 Melee 11 | . . . . 11 Guns 3 | . 3 . . . AOE 10 | . . 3 . 7 Classes Destroyed 4 | 2 1 . . 1 Tunneler 3 | 1 . 1 . 1 Recycler 1 | 1 . . . . Swarmer 13 | . 3 3 . 7 Assembled 11 | . . . . 11 Best Kill Streak 7 | 1 3 4 . 7 Combat Bots Only 7 | . 3 3 . 7 Max Kills in Single Turn 2 | 1 1 2 . 2 Gunslinging . | . . . . . Exploded 2 | . . 2 . 2 Melee 1 | . . . . 1 Uniques/NPCs Destroyed . | . . . . . Combat | -11 -10 -10 -10 -9 -------- Run | Yrd Mat Min Exi Min Hostile Shots Fired 89 | . 24 3 . 62 Missed 24 | . 6 2 . 16 Hits 65 | . 18 1 . 46 Melee 4 | . . . . 4 Projectile 61 | . 18 1 . 42 AOE 9 | . . . . 9 Critical Strikes 3 | . 1 . . 2 Damage Taken 1027 | . 137 24 . 866 Core 260 | . 29 18 . 213 Absorbed by Shields . | . . . . . Core Remaining (%) 100 | 100 . . . . Volleys Fired 28 | 5 12 2 3 6 Largest 2 | 2 2 2 2 2 Hottest 60 | 40 40 60 60 60 Shots Fired 56 | 10 24 4 6 12 Gun 34 | 10 24 . . . Cannon . | . . . . . Launcher 22 | . . 4 6 12 Special . | . . . . . Kinetic 34 | 10 24 . . . Thermal . | . . . . . Explosive 22 | . . 4 6 12 Electromagnetic . | . . . . . Robot Hit Streak 5 | 4 5 4 5 5 Robot Miss Streak 4 | 1 4 . 1 1 Penetration Max . | . . . . . Secondary Targets . | . . . . . Shots Hit Robots 46 | 6 11 2 1 26 Core Hits 46 | 4 5 4 4 29 Critical Kills . | . . . . . Critical Parts Destroyed 1 | . 1 . . . Critical Strikes 1 | . 1 . . . Destroy 1 | . 1 . . . Melee Attacks 32 | . . . . 32 Impact . | . . . . . Slashing 28 | . . . . 28 Piercing 4 | . . . . 4 Sneak Attacks 1 | . . . . 1 Combat Hostiles . | . . . . . Follow-up Attacks 1 | . . . . 1 Damage Inflicted 1824 | 70 110 238 169 1237 Guns 180 | 70 110 . . . Cannons . | . . . . . Explosions 886 | . . 221 169 496 Melee 741 | . . . . 741 Ramming 17 | . . 17 . . Kinetic 180 | 70 110 . . . Thermal . | . . . . . Explosive 886 | . . 221 169 496 Electromagnetic . | . . . . . Impact . | . . . . . Slashing 741 | . . . . 741 Piercing . | . . . . . Highest Corruption . | . . . . . Average Corruption . | . . . . . Corruption Purged . | . . . . . Corruption Blocked . | . . . . . Overload Shots . | . . . . . Overflow Damage 55 | . . . . 55 Projectiles . | . . . . . Explosions 28 | . . . . 28 Melee 27 | . . . . 27 Knockbacks . | . . . . . Impact . | . . . . . Kinetic . | . . . . . Secondary . | . . . . . Self-Inflicted Damage 110 | . . 18 . 92 Shots 4 | . . 1 . 3 Rammed . | . . . . . Targets Rammed 2 | . . 2 . . Kicked 2 | . . 2 . . Crushed . | . . . . . Highest Temperature . | . . . . . Average Temperature . | . . . . . Received Heat Transfer . | . . . . . Siege Activations . | . . . . . Martial Activations . | . . . . . Shielding Activations . | . . . . . Robots Disrupted . | . . . . . Combat Hostiles . | . . . . . Robots Corrupted . | . . . . . Combat Hostiles . | . . . . . Parts Fried . | . . . . . Impact Corruptions . | . . . . . Robots Melted . | . . . . . Combat Hostiles . | . . . . . Parts Melted . | . . . . . Heat Transferred . | . . . . . Parts Sabotaged . | . . . . . Parts Stolen . | . . . . . Parts Stripped . | . . . . . Power Chain Reactions . | . . . . . Alert | -11 -10 -10 -10 -9 ------- Run | Yrd Mat Min Exi Min Maximum Alert Level . | . . . . . Low Security (%) 100 | 100 100 100 . 100 Level 1 . | . . . . . Level 2 . | . . . . . Level 3 . | . . . . . Level 4 . | . . . . . Level 5 . | . . . . . High Security . | . . . . . Max Security . | . . . . . Peak Influence 144 | 5 68 144 . 123 Initial . | . . . . . Average 41 | 1 15 62 . 47 Influence Increases 493 | 10 78 174 . 231 Destroy 0b10 Robot/C 320 | . 60 120 . 140 Destroy 0b10 Robot/NC 20 | 10 . 5 . 5 Destroy Leader 50 | . 10 20 . 20 Allied During Kill 8 | . . 8 . . Successful Hack 16 | . 8 . . 8 Destroy Structure 64 | . . 21 . 43 Lose Combat Pursuer 15 | . . . . 15 Influence Decreases 487 | 10 78 156 18 225 Entered New Map 18 | . . . 18 . Time Decay 419 | 10 78 156 . 175 Lost Part 50 | . . . . 50 Squads Dispatched 1 | . . . . 1 Investigation 1 | . . . . 1 Extermination . | . . . . . Reinforcement . | . . . . . Assault . | . . . . . Garrison . | . . . . . Intercept . | . . . . . Searches Triggered . | . . . . . Construction Impeded . | . . . . . Haulers Reinforced . | . . . . . Active Scanning Responses . | . . . . . Cargo Convoy Interrupts . | . . . . . Stealth | -11 -10 -10 -10 -9 --------- Run | Yrd Mat Min Exi Min Distress Signals 1 | . . 1 . . Communications Jammed . | . . . . . Distress Signals . | . . . . . Times Spotted 39 | . 8 6 . 25 Peak Tracking Total 6 | . 3 3 . 6 Tactical Retreats 4 | . . . . 4 Traps | -11 -10 -10 -10 -9 ------- Run | Yrd Mat Min Exi Min Traps Triggered 1 | . 1 . . . Indirectly . | . . . . . Trap Hack Attempts . | . . . . . Triggered . | . . . . . Disarmed . | . . . . . Reprogrammed . | . . . . . Reused . | . . . . . Traps Extracted . | . . . . . Installed . | . . . . . Triggered . | . . . . . Machines | -11 -10 -10 -10 -9 ---------- Run | Yrd Mat Min Exi Min Machines Disabled . | . . . . . Max in Single Turn . | . . . . . Machines Repaired . | . . . . . Machines Dismantled . | . . . . . Machines Sabotaged . | . . . . . Overloaded Fab Kills . | . . . . . Hacking | -11 -10 -10 -10 -9 --------- Run | Yrd Mat Min Exi Min Machines Accessed 3 | . 1 . 1 1 Terminals 2 | . 1 . . 1 Fabricators . | . . . . . Repair Stations . | . . . . . Recycling Units . | . . . . . Scanalyzers . | . . . . . Garrison Access . | . . . . . Total Hacks 5 | . 2 . 2 1 Successful 4 | . 1 . 2 1 Failed 1 | . 1 . . . Catastrophic . | . . . . . Database Lockouts . | . . . . . Manual 4 | . 2 . 1 1 Terminals 3 | . 2 . . 1 Fabricators . | . . . . . Repair Stations . | . . . . . Recycling Units . | . . . . . Scanalyzers . | . . . . . Garrison Access . | . . . . . Terminal Hacks 4 | . 1 . 2 1 Record 2 | . . . 2 . Branch Access Points 2 | . 1 . . 1 Fabricator Hacks . | . . . . . Repair Station Hacks . | . . . . . Recycling Unit Hacks . | . . . . . Scanalyzer . | . . . . . Garrison Access Hacks . | . . . . . Unauthorized Hacks . | . . . . . Terminals . | . . . . . Fabricators . | . . . . . Repair Stations . | . . . . . Recycling Units . | . . . . . Scanalyzers . | . . . . . Garrison Access . | . . . . . Data Cores Recovered . | . . . . . Used . | . . . . . Hacking Detections . | . . . . . Full Trace Events . | . . . . . Feedback Events . | . . . . . Feedback Blocked . | . . . . . Robot Schematics Acquired . | . . . . . Robots Built . | . . . . . Authchips . | . . . . . Time . | . . . . . Total Robot Build Rating . | . . . . . Part Schematics Acquired . | . . . . . Parts Built . | . . . . . Authchips . | . . . . . Time . | . . . . . Total Part Build Rating . | . . . . . Part Studies Acquired . | . . . . . Parts Repaired . | . . . . . Time . | . . . . . Parts Recycled . | . . . . . Recycled Matter . | . . . . . Retrieved Matter . | . . . . . Retrieved Components . | . . . . . Parts Scanalyzed . | . . . . . Part Schematics Acquired . | . . . . . Parts Damaged . | . . . . . Bothacking | -11 -10 -10 -10 -9 ------------ Run | Yrd Mat Min Exi Min Used RIF Installer . | . . . . . Robots Hacked . | . . . . . Non-combat . | . . . . . Combat . | . . . . . Robot Hacks Applied . | . . . . . Relay Couplers Released . | . . . . . Fabnet Peak Effective % . | . . . . . Robots Rewired . | . . . . . Allies Hacked . | . . . . . Hacks Repelled . | . . . . . Allies | -11 -10 -10 -10 -9 -------- Run | Yrd Mat Min Exi Min Total Allies 1 | . . 1 . . Largest Group 1 | . . 1 . . Highest-Rated Group 31 | . . 31 . . Highest-Rated Ally 31 | . . 31 . . Total Orders . | . . . . . Ally Attacks 6 | . . 6 . . Total Damage 63 | . . 63 . . Kills 3 | . . 3 . . Allies Corrupted . | . . . . . Allies Melted . | . . . . . Intel | -11 -10 -10 -10 -9 ------- Run | Yrd Mat Min Exi Min Active Infowar (turns) 163 | 5 158 . . . Seismic 163 | 5 158 . . . Robot Analysis Total . | . . . . . Derelict Logs Recovered 1 | . . 1 . . Drone Launches . | . . . . . Drone Recoveries . | . . . . . Exploration | -11 -10 -10 -10 -9 ------------- Run | Yrd Mat Min Exi Min Turns Passed 2410 | 90 334 425 1093 468 Spaces Moved 1572 | 52 232 343 713 232 Core 9 | 9 . . . . Treads 771 | . . . 539 232 Legs 792 | 43 232 343 174 . Wheels . | . . . . . Hover . | . . . . . Flight . | . . . . . Fastest Speed 50 | 50 120 120 120 160 Average Speed 139 | 107 120 120 150 164 Slowest Speed 240 | 120 120 120 160 240 Overloaded Moves . | . . . . . Propulsion Burnouts . | . . . . . Robots Hopped . | . . . . . Potential Cave-ins 3 | . . . 3 . Cave-ins Triggered . | . . . . . Exploration Rate (%) 48 | 4 39 70 89 39 Regions Visited 4 Branch Regions 3 Pre-discovered Areas . | . . . . . Known Exits Taken 1 | . 1 . . . Unknown Exits Taken 3 | 1 . 1 1 . Scrap Searched 1 | . . . . 1 Spaces Dug . | . . . . . Terrain Destroyed 133 | . . 21 34 78 Melee . | . . . . . Projectile . | . . . . . AOE 133 | . . 21 34 78 Terrain Rammed . | . . . . . Walls Destroyed . | . . . . . Machines Disabled . | . . . . . Actions | -11 -10 -10 -10 -9 --------- Run | Yrd Mat Min Exi Min Total 1712 | 77 267 352 729 287 Wait 8 | . 2 5 . 1 Move 1568 | 51 231 342 712 232 Hop . | . . . . . Pick Up 37 | 12 10 1 7 7 Fast Attach . | . . . . . Attach 17 | 8 2 . . 7 Detach . | . . . . . Swap 10 | . 4 . 3 3 Drop 14 | 1 6 . 4 3 Fire 28 | 5 12 2 3 6 Melee 28 | . . . . 28 Ram . | . . . . . Kick 2 | . . 2 . . Crush . | . . . . . Escape Stasis . | . . . . . Rewire . | . . . . . Trap . | . . . . . Miscellaneous . | . . . . . Route ------- -11/Scrapyard -10/Materials (discovered 2 exits: [*Mat] / *Min) -10/Mines (discovered 3 exits: [*Mat x2] / *Exi) -10/Exiles (discovered 2 exits: *Min x2) -9/Mines History --------- Turn | Location | Event 6 | -11/Scrapyard | Discovered new exit (range 13) 91 | -11/Scrapyard | Entered Materials 195 | -10/Materials | Identified exit to Mines 238 | -10/Materials | Discovered new exit (range 8) 307 | -10/Materials | Build established: Mutant 425 | -10/Materials | Entered Mines 474 | -10/Mines | Received a Mining Laser from a helpful Derelict 524 | -10/Mines | Discovered new exit (range 10) 557 | -10/Mines | Found a damaged Exp. Sensor Array with a note attached 560 | -10/Mines | Found Prototype Device 632 | -10/Mines | Found a hidden stash of uninstalled traps 640 | -10/Mines | Learned Materials terminal intel 689 | -10/Mines | Discovered new exit (range 15) 845 | -10/Mines | Deemed a non-threat by the Exiles lab entrance 845 | -10/Mines | Discovered new exit (range 5) 850 | -10/Mines | Entered Exiles 850 | -10/Exiles | Found Exiles lab destroyed 868 | -10/Exiles | Discovered new exit (range 15) 1466 | -10/Exiles | Discovered new exit (range 14) 1771 | -10/Exiles | Opened EX-Vault 1778 | -10/Exiles | Found Prototype Flight Unit 1943 | -10/Exiles | Entered Mines 1957 | -9/Mines | Assembled infested the area 1962 | -9/Mines | Assisted by a Guerilla fighting off Assembled 2023 | -9/Mines | Met a Derelict shopkeep closing up shop 2043 | -9/Mines | Destroyed 7 combat bots 2387 | -9/Mines | Core integrity fell below 50% 2396 | -9/Mines | Core integrity fell below 20% 2411 | -9/Mines | Destroyed by D-53 Grenadier with Mini Grenade Launcher Last Messages --------------- 02273_ Acquired Lgt. Ion Engine. 02298_ Sneak attack on T-07 Excavator. 02298_ T-07 Excavator destroyed. 02300_ Acquired 27 matter. 02303_ Dropped Lgt. Ion Engine. 02305_ Acquired Lgt. Ion Engine. 02346_ T-07 Excavator is excavating. 02359_ Searching scrap... 02359_ Found Lgt. EM Pulse Cannon. 02359_ Found Med. Laser. 02359_ Found Ion Engine. 02359_ Found 31 Matter. 02359_ Found 70 Matter. 02360_ Acquired 12 matter. 02395_ Lgt. Treads destroyed. 02399_ The unstable cave ceiling collapses. 02400_ Acquired 10 matter. 02401_ Lgt. Treads destroyed. 02405_ Lgt. Ion Engine destroyed. 02408_ The unstable cave ceiling collapses. Map ----- +----------------------------------------------------+ | | | | | | | | | | | | | | | ???????????????????????????????????????????? | | ??????????????????????#####????????????????? | | ####????????????????## ##???????????????? | | #?????########???# #???????????????? | | #????## ##??# #???????????????? | | "=%#????# ! #?## #???????????????? | | " *###### ! [ ### #????????????????? | | " =### #?????????????????? | | ==####### =### ##?????????????????? | | #[##?????### ###?# #??????????????????? | | #*#????????#=##### """ #??????????????????? | | # #????????#!*= """ ##?????????????????? | | #=#?????#### #### """ ########## #??? | | #=#????## #??# #?? | | # #????# #??# #### ####### #?? | | #]#???## #??## ### #?????????????? | | # ##### #???### # #?????????????? | | #????## # #?????????????? | | ######## ##???## % @ #?????????????? | | ???????######????# # # #?????????????? | | ?????????????????# # #????????????? | | ????????????????# #???????????? | | ????????????????## # ##???????????? | | ?????????????????# ## ????????????? | | ?????????????????# ###? #???????????? | | ?????????????????# #??####???????????? | | ?????????????????# d #?????????????????? | | #????????????????# #?????????????????? | | ?????????????# ##?????????????????? | | ?????????????????# #?????????????????? | | ?????????????????### ###?????????????????? | | ???????????????????## ##???????????????????? | | ????????????????????# #????????????????????? | | ????????????????????#=#????????????????????? | | ????????????????????#=#????????????????????? | | ????????????????????%=#????????????????????? | | ????????????????????#% ????????????????????? | | ????????????????????[= ????????????????????? | | ???????????????????? ????????????????????? | | ???????????????????? ????????????????????? | | ???????????????????? ????????????????????? | | ???????????????????? #????????????????????? | | ????????????????????# ?????????????????????? | +----------------------------------------------------+ Best States ------------- Heat Dissipation 25 Energy Generation 10 Energy Capacity 250 Matter Stores 300 Matter Capacity 300 Sight Range 16 Terrain Scan Density 10 Melee Speed Boost 20 Evasion (%) 55 Targeting Accuracy 6 Recoil Reduction 2 Item Schematics ----------------- None Robot Schematics ------------------ None Fabricated ------------ Nothing Repaired ---------- Nothing Studied --------- None Alien Tech Used ----------------- None Achievements -------------- Luggage Code Challenges ------------ None Game ------ Seed ActuatorCoilProjector Manual? 0 Play Time 00:16:10 Cumulative 18.3 hours Start 2026.08.31 @ 19:06:47 End 2026.08.31 @ 19:21:46 Sessions 1 Manual Loads 0 Difficulty Rogue Special Mode None Game No. 38 Rogue 37 Adventurer 1 Explorer 0 Win Type - Total 0 Types 0/0/0/0/0/0/0/0/0/0 Lore% 21 Gallery% 23 Achievement% 19 Wizard Run 0 Options --------- Layout 0 ASCII 0 Keyboard 0 Movement Mouse Keybinds 0 Fullscreen 2 Font 18/SmallcapsGlow Map View 38x25 Zoom Use 98% Tactical HUD 1 Map Filters NONE Filters NONE Steam 1 RUN: cad0b38f-2e42-4e83-b5c8-4fa8fd94526c